bitfinex-derivatives/quotes_BTCF0:USTF0_20250929
["timestamp","ask_amount","ask_price","bid_price","bid_amount"]
[1759155311701,0.00044,113890.0,113880.0,1.26456266]
[1759155312094,4e-05,113890.0,113880.0,1.27331648]
[1759155312402,0.00044,113890.0,113880.0,2.13127648]
[1759155313198,0.00044,113890.0,113880.0,2.15419609]
[1759155313400,0.00044,113890.0,113880.0,2.13127648]
[1759155314198,0.00044,113890.0,113880.0,1.27331648]
[1759155314399,0.00044,113890.0,113880.0,2.13103648]
[1759155314701,0.00044,113890.0,113880.0,0.92346051]
[1759155315002,0.00044,113890.0,113880.0,1.78118051]
[1759155315200,0.00044,113890.0,113880.0,2.15393305]
[1759155315502,4e-05,113890.0,113880.0,2.13103648]
[1759155315695,0.00044,113890.0,113880.0,2.13103648]
[1759155316201,0.00044,113890.0,113880.0,2.13083648]
[1759155316398,0.00689428,113900.0,113890.0,0.1234844]
[1759155316699,0.11,113910.0,113900.0,0.1234767]
[1759155316897,0.45985597,113910.0,113900.0,0.1234767]
[1759155317093,0.45985597,113910.0,113900.0,0.9809567]
[1759155317400,0.45985597,113910.0,113900.0,0.1234767]
[1759155317595,0.4485236,113930.0,113920.0,0.1234612]
[1759155317792,0.71065597,113930.0,113920.0,0.1234612]
[1759155317990,0.43757177,113940.0,113930.0,0.1234535]
[1759155318195,0.3608,113960.0,113940.0,0.03551]
[1759155318500,0.4485004,113960.0,113950.0,0.03551]
[1759155319002,0.8489004,113960.0,113950.0,0.03551]
[1759155319504,1.19875637,113960.0,113950.0,0.03551]
[1759155319805,0.0877081,113950.0,113940.0,0.01378]
[1759155320000,2.40538004,113950.0,113940.0,0.01378]
[1759155320902,2.40542004,113950.0,113940.0,0.01378]
[1759155321099,0.0877158,113940.0,113930.0,0.01327]
[1759155321302,1.54822774,113940.0,113930.0,0.01327]
[1759155321503,0.0877235,113930.0,113920.0,0.01327]
[1759155321700,1.65529947,113930.0,113920.0,0.01327]
[1759155321909,2.05529947,113930.0,113920.0,0.01327]
[1759155322309,2.40515544,113930.0,113920.0,0.01327]
[1759155322718,2.05529947,113930.0,113920.0,0.01327]
[1759155322912,2.40515544,113930.0,113920.0,0.01327]
[1759155323420,0.4485235,113930.0,113920.0,0.035]
[1759155323611,0.4485235,113930.0,113920.0,0.01327]
[1759155323612,0.79837947,113930.0,113920.0,0.01327]
[1759155323918,0.4485635,113930.0,113920.0,0.01327]
[1759155324107,1.65553947,113930.0,113920.0,0.01327]
[1759155324415,0.79881947,113930.0,113920.0,0.035]
[1759155324613,2.05505947,113930.0,113920.0,0.1227312]
[1759155324815,2.05545947,113930.0,113920.0,0.035]
[1759155325010,2.05505947,113930.0,113920.0,0.035]
[1759155325218,2.05545947,113930.0,113920.0,0.035]
[1759155325411,0.8489635,113930.0,113920.0,0.035]
[1759155325609,2.05545947,113930.0,113920.0,0.035]
[1759155326114,2.05545947,113930.0,113920.0,0.01327]
[1759155328112,2.05545947,113930.0,113920.0,0.035]
[1759155328318,1.7053235,113930.0,113920.0,0.1227313]
[1759155328513,2.05517947,113930.0,113920.0,0.035]
[1759155328714,2.05513947,113930.0,113920.0,0.035]
[1759155328921,1.19881947,113930.0,113920.0,0.1227313]
[1759155329107,2.05505947,113930.0,113920.0,0.1227313]
[1759155330409,1.7052035,113930.0,113920.0,0.1227313]
[1759155330613,1.7051635,113930.0,113920.0,0.1227313]
[1759155330815,2.05501947,113930.0,113920.0,0.1227313]
[1759155331116,0.79881947,113930.0,113920.0,0.1227313]
[1759155331412,1.29405947,113930.0,113920.0,0.1227313]
[1759155331621,1.29365947,113930.0,113920.0,0.1227313]
[1759155331817,1.29401947,113930.0,113920.0,0.1227313]
[1759155332018,0.43761947,113930.0,113920.0,0.1227313]
[1759155332215,0.43801947,113930.0,113920.0,0.1227313]
[1759155332415,0.43761947,113930.0,113920.0,0.5227313]
[1759155332820,0.35029597,113930.0,113920.0,0.5227313]
[1759155333429,0.43802027,113930.0,113920.0,0.5227313]
[1759155333925,4e-05,113930.0,113920.0,1.23338727]
[1759155334221,0.00044,113930.0,113920.0,0.8835313]
[1759155334418,4e-05,113930.0,113920.0,0.90641474]
[1759155334620,4e-05,113930.0,113920.0,1.25627071]
[1759155334816,0.00044,113930.0,113920.0,0.90641474]
[1759155335021,4e-05,113930.0,113920.0,0.90641474]
[1759155335220,0.00044,113930.0,113920.0,0.90641474]
[1759155336824,0.00084,113950.0,113940.0,0.1232267]
[1759155337024,4e-05,113950.0,113940.0,0.86765007]
[1759155337323,0.35029597,113950.0,113940.0,0.86765007]
[1759155337928,0.43800497,113950.0,113940.0,0.05833337]
[1759155338122,0.448949,113950.0,113940.0,0.1232267]
[1759155338420,0.43800497,113950.0,113940.0,0.1232267]
[1759155338826,0.00044,113950.0,113940.0,0.14605007]
[1759155339023,0.00044,113950.0,113940.0,0.50685007]
[1759155339224,0.35029597,113950.0,113940.0,0.50685007]
[1759155339621,0.43800497,113950.0,113940.0,0.50685007]
[1759155340123,0.43800497,113950.0,113940.0,0.14605007]
[1759155340326,0.43757046,113950.0,113940.0,0.14605007]
[1759155341823,1.14779192,113950.0,113940.0,0.03551]
[1759155342027,0.36124,113950.0,113940.0,0.1232267]
[1759155342229,0.71066146,113950.0,113940.0,0.1232267]
[1759155342428,0.34946146,113950.0,113940.0,0.14605007]
[1759155342828,0.34986146,113950.0,113940.0,0.14605007]
[1759155343029,0.00044,113950.0,113940.0,0.14605007]
[1759155343230,0.34986146,113950.0,113940.0,0.49547153]
[1759155343626,0.34986146,113950.0,113940.0,0.14605007]
[1759155344027,0.34986146,113950.0,113940.0,0.54605007]
[1759155344828,0.34986146,113950.0,113940.0,0.89547153]
[1759155345028,0.34986146,113950.0,113940.0,0.54605007]
[1759155345336,0.43757056,113950.0,113940.0,0.89547153]
[1759155345643,0.34986146,113950.0,113940.0,0.89547153]
[1759155346135,0.0881491,113950.0,113940.0,0.54605007]
[1759155346335,0.43757056,113950.0,113940.0,0.89547153]
[1759155347037,0.34986146,113950.0,113940.0,0.89547153]
[1759155347226,0.34986146,113950.0,113940.0,1.25627153]
[1759155347936,0.34986146,113950.0,113940.0,1.28670269]
[1759155348638,4e-05,113950.0,113940.0,2.14102269]
[1759155348934,0.00044,113950.0,113940.0,2.14102269]
[1759155349130,0.00044,113950.0,113940.0,2.1410401]
[1759155349337,0.34986146,113950.0,113940.0,2.11819932]
[1759155349729,0.34986146,113950.0,113940.0,1.76877786]
[1759155349930,0.00044,113950.0,113940.0,2.11819932]
[1759155350126,0.34986146,113950.0,113940.0,2.11819932]
[1759155350628,0.00044,113950.0,113940.0,2.11819932]
[1759155351039,0.34986146,113950.0,113940.0,2.11819932]
[1759155351637,0.00044,113950.0,113940.0,2.11819932]
[1759155351831,0.34986146,113950.0,113940.0,2.11819932]
[1759155352031,0.00044,113950.0,113940.0,2.11819932]
[1759155352637,0.34986146,113950.0,113940.0,2.11819932]
[1759155352939,0.00044,113950.0,113940.0,2.46762078]
[1759155353534,4e-05,113950.0,113940.0,2.46762078]
[1759155353729,0.00044,113950.0,113940.0,2.46762078]
[1759155353940,4e-05,113950.0,113940.0,2.06762078]
[1759155354136,0.00044,113950.0,113940.0,2.06762078]
[1759155354441,0.42746667,113970.0,113950.0,0.0877066]
[1759155354638,0.77768813,113970.0,113960.0,0.47176286]
[1759155354838,0.86538183,113970.0,113960.0,0.1223414]
[1759155355040,0.86458183,113970.0,113960.0,0.1223414]
[1759155355244,1.22312131,113970.0,113960.0,0.03464]
[1759155355439,1.62312131,113970.0,113960.0,0.03464]
[1759155355743,1.27369985,113970.0,113960.0,0.1223414]
[1759155356244,0.86498183,113970.0,113960.0,0.1223414]
[1759155356444,0.86458183,113970.0,113960.0,0.1223414]
[1759155356743,0.86498183,113970.0,113960.0,0.1223414]
[1759155357140,0.51556037,113970.0,113960.0,0.1223414]
[1759155357340,0.86498183,113970.0,113960.0,0.1223414]
[1759155359342,0.51556037,113970.0,113960.0,0.1223414]
[1759155359542,0.86498183,113970.0,113960.0,0.1223414]
[1759155360044,0.51556037,113970.0,113960.0,0.1223414]
[1759155360245,0.15476037,113970.0,113960.0,0.14517739]
[1759155360448,0.50418183,113970.0,113960.0,0.14517739]
[1759155360642,0.41648813,113970.0,113960.0,0.49459885]
[1759155361040,0.06666667,113970.0,113960.0,0.49459885]
[1759155361334,0.50418183,113970.0,113960.0,0.14517739]
[1759155361740,0.41648813,113970.0,113960.0,0.49459885]
[1759155361942,0.06706667,113970.0,113960.0,0.49459885]
[1759155362146,0.50418183,113970.0,113960.0,0.49459885]
[1759155362449,0.06666667,113970.0,113960.0,0.14517739]
[1759155362646,0.50418183,113970.0,113960.0,0.49459885]
[1759155362845,0.06706667,113970.0,113960.0,0.49459885]
[1759155363053,0.41648813,113970.0,113960.0,0.49459885]
[1759155363951,0.41608813,113970.0,113960.0,0.85539885]
[1759155364136,0.41648813,113970.0,113960.0,0.88583001]
[1759155364846,0.41648813,113970.0,113960.0,0.86299402]
[1759155365447,0.41608813,113970.0,113960.0,0.86299402]
[1759155365643,0.06706667,113970.0,113960.0,0.8718122]
[1759155366043,0.06666667,113970.0,113960.0,0.8718122]
[1759155366243,0.06706667,113970.0,113960.0,0.8718122]
[1759155366551,0.06666667,113970.0,113960.0,2.08963924]
[1759155366739,0.06706667,113970.0,113960.0,1.74021778]
[1759155367140,0.06706667,113970.0,113960.0,2.08963924]
[1759155367546,0.06666667,113970.0,113960.0,2.12017846]
[1759155367737,0.06706667,113970.0,113960.0,0.53807632]
[1759155367939,0.06706667,113970.0,113960.0,1.39067632]
[1759155368138,0.06706667,113970.0,113960.0,2.0434025]
[1759155368346,0.06706667,113970.0,113960.0,1.1908025]
[1759155368544,0.00809384,113980.0,113970.0,0.1223337]
[1759155368747,0.00809384,113980.0,113970.0,1.71559783]
[1759155369054,0.00809384,113980.0,113970.0,2.16171457]
[1759155369351,0.00809384,113980.0,113970.0,1.26307783]
[1759155369541,0.00809384,113980.0,113970.0,2.11551783]
[1759155369747,0.00849384,113980.0,113970.0,2.16163457]
[1759155369947,0.00849384,113980.0,113970.0,2.15141345]
[1759155370146,0.00849384,113980.0,113970.0,1.32947385]
[1759155370337,0.03082384,113980.0,113970.0,0.1528341]
[1759155370645,1.49046676,113980.0,113970.0,0.1528341]
[1759155370856,1.1410453,113980.0,113970.0,0.49463704]
[1759155371042,0.7187153,113980.0,113970.0,0.49463704]
[1759155371243,0.36929384,113980.0,113970.0,0.49463704]
[1759155371443,0.7406453,113980.0,113970.0,0.49463704]
[1759155371746,0.7410453,113980.0,113970.0,0.49463704]
[1759155371944,0.00809384,113980.0,113970.0,2.13817744]
[1759155372143,0.00809384,113980.0,113970.0,2.11529556]
[1759155372343,0.00849384,113980.0,113970.0,2.11529556]
[1759155373550,0.3802453,113980.0,113970.0,0.5136341]
[1759155373738,1.57815276,113980.0,113970.0,0.1528341]
[1759155373940,0.79162384,113980.0,113970.0,0.1528341]
[1759155374139,1.49046676,113980.0,113970.0,0.1528341]
[1759155374345,1.57815276,113980.0,113970.0,0.0651404]
[1759155374543,1.57815276,113980.0,113970.0,0.1528341]
[1759155374744,1.57815276,113980.0,113970.0,0.14521431]
[1759155375340,1.57815276,113980.0,113970.0,0.05752061]
[1759155375543,0.87930984,113980.0,113970.0,0.05752061]
[1759155375756,1.57815276,113980.0,113970.0,0.05752061]
[1759155375960,1.57815276,113980.0,113970.0,0.14521431]
[1759155376253,0.51850984,113980.0,113970.0,0.1223337]
[1759155376451,1.57815276,113980.0,113970.0,0.14521431]
[1759155377047,1.57815276,113980.0,113970.0,0.05752061]
[1759155377450,0.1089837,113970.0,113960.0,0.08929101]
[1759155377656,0.81920516,113970.0,113960.0,0.05879061]
[1759155377954,0.81920516,113970.0,113960.0,0.14736201]
[1759155378549,0.4697837,113970.0,113960.0,0.14736201]
[1759155378750,0.81920516,113970.0,113960.0,0.14736201]
[1759155379255,2.43005662,113970.0,113960.0,0.00087]
[1759155380046,2.43005662,113970.0,113940.0,0.05338101]
[1759155380047,0.1188091,113950.0,113940.0,0.05338101]
[1759155380249,2.39077202,113950.0,113940.0,0.02288061]
[1759155380452,0.1094668,113940.0,113930.0,0.05338101]
[1759155380655,1.16910972,113940.0,113930.0,0.02288061]
[1759155380851,1.56910972,113940.0,113930.0,0.02288061]
[1759155381151,2.42058972,113940.0,113930.0,0.02288061]
[1759155381354,0.1094745,113930.0,113920.0,0.14607211]
[1759155381557,0.02175,113930.0,113920.0,0.14607211]
[1759155381753,0.37117146,113930.0,113920.0,0.14607211]
[1759155382152,0.1094745,113930.0,113920.0,0.14607211]
[1759155382453,0.02115,113930.0,113920.0,0.17656896]
[1759155382655,0.1088745,113930.0,113920.0,0.1536919]
[1759155382860,0.02115,113930.0,113920.0,0.17656895]
[1759155383161,0.1088745,113930.0,113920.0,0.05833705]
[1759155383351,0.66380044,113930.0,113920.0,0.02287705]
[1759155383559,0.66380044,113930.0,113910.0,0.4041004]
[1759155383560,0.1094822,113920.0,113910.0,0.4041004]
[1759155383755,0.65565814,113920.0,113910.0,0.4918403]
[1759155383958,1.50697814,113920.0,113910.0,0.1310403]
[1759155384259,1.41620594,113920.0,113910.0,0.1231999]
[1759155384659,1.90393814,113920.0,113910.0,0.02286217]
[1759155385060,1.90393814,113920.0,113910.0,0.02886217]
[1759155385061,1.05265814,113920.0,113910.0,0.02886217]
[1759155385263,1.81616594,113920.0,113910.0,0.16606207]
[1759155385767,0.01915,113920.0,113910.0,0.14606207]
[1759155385970,0.9576822,113920.0,113910.0,0.14606207]
[1759155386168,0.9580822,113920.0,113910.0,0.1231999]
[1759155386672,1.90425814,113920.0,113910.0,0.03546]
[1759155387070,1.05305814,113920.0,113910.0,0.03546]
[1759155387273,1.90421814,113920.0,113910.0,0.03546]
[1759155387573,1.07405814,113920.0,113910.0,0.1231999]
[1759155387871,1.92517814,113920.0,113910.0,0.1231999]
[1759155388068,1.92517814,113920.0,113910.0,0.03546]
[1759155388575,1.90417814,113920.0,113910.0,0.03546]
[1759155389078,1.90417814,113920.0,113910.0,0.0128]
[1759155389265,0.1094899,113910.0,113900.0,0.03633]
[1759155389470,0.1094899,113910.0,113900.0,0.00087]
[1759155389471,1.02581584,113910.0,113900.0,0.00087]
[1759155389772,1.42581584,113910.0,113900.0,0.00087]
[1759155389965,0.1095053,113890.0,113880.0,0.03546]
[1759155390165,1.41892594,113890.0,113880.0,0.123223]
[1759155390576,1.50664124,113890.0,113880.0,0.123223]
[1759155390768,0.87271,113890.0,113880.0,0.123223]
[1759155390963,0.87311,113890.0,113880.0,0.123223]
[1759155391271,0.02215,113890.0,113880.0,0.523223]
[1759155391572,0.02175,113890.0,113880.0,0.90688517]
[1759155391868,0.0004,113890.0,113880.0,1.45306111]
[1759155392471,0.02175,113900.0,113890.0,0.1232113]
[1759155392663,0.02175,113900.0,113890.0,0.4840113]
[1759155393676,0.56872594,113910.0,113900.0,0.1232076]
[1759155393977,1.50646584,113910.0,113900.0,0.1232076]
[1759155394176,1.50686584,113910.0,113900.0,0.1232076]
[1759155394375,0.65606584,113910.0,113900.0,0.1232076]
[1759155394675,1.86766584,113910.0,113900.0,0.03546]
[1759155394872,0.0877476,113900.0,113890.0,0.0128]
[1759155395073,0.66267354,113900.0,113890.0,0.1232153]
[1759155395273,0.66267354,113900.0,113890.0,0.03546]
[1759155395471,0.66267354,113900.0,113880.0,0.4613586]
[1759155395472,0.0877553,113890.0,113880.0,0.39626]
[1759155395669,1.50640124,113890.0,113880.0,0.0128]
[1759155395976,1.86720124,113890.0,113880.0,0.0128]
[1759155396167,1.86720124,113890.0,113880.0,0.123223]
[1759155396373,1.50640124,113890.0,113880.0,0.123223]
[1759155396575,1.86720124,113890.0,113880.0,0.03546]
[1759155396769,0.109513,113880.0,113870.0,0.1240847]
[1759155396977,0.65568894,113880.0,113870.0,0.1014247]
[1759155397176,0.02175,113880.0,113870.0,0.1240847]
[1759155397380,1.23319,113890.0,113880.0,0.123223]
[1759155397582,0.02175,113890.0,113880.0,0.123223]
[1759155397776,0.0004,113890.0,113880.0,1.03019894]
[1759155397976,0.02175,113900.0,113890.0,0.1232153]
[1759155398174,0.87311,113900.0,113890.0,0.1232153]
[1759155398370,0.9608576,113900.0,113890.0,0.1232153]
[1759155398580,0.02255,113900.0,113890.0,0.1232153]
[1759155398776,0.02255,113900.0,113890.0,0.4840153]
[1759155398980,0.65647354,113900.0,113890.0,0.1232153]
[1759155399378,1.01727354,113900.0,113890.0,0.1232153]
[1759155399581,1.01647354,113900.0,113890.0,0.03546]
[1759155399883,1.01687354,113900.0,113890.0,0.0128]
[1759155400270,0.1095053,113890.0,113880.0,0.03546]
[1759155400474,1.50612124,113890.0,113880.0,0.100563]
[1759155400873,0.9599453,113890.0,113880.0,0.123223]
[1759155401074,0.56792594,113890.0,113880.0,0.123223]
[1759155401281,0.87215,113890.0,113880.0,0.123223]
[1759155401674,0.02215,113890.0,113880.0,0.123223]
[1759155402182,0.0014,113890.0,113880.0,0.884023]
[1759155402376,0.0004,113890.0,113880.0,0.884023]
[1759155402579,0.87207,113900.0,113890.0,0.1232153]
[1759155402879,0.02255,113900.0,113890.0,0.4840153]
[1759155403476,0.87279,113900.0,113890.0,0.4840153]
[1759155403683,0.02255,113900.0,113890.0,0.4840153]
[1759155404480,0.02275,113900.0,113890.0,0.4840153]
[1759155404781,0.04375,113900.0,113890.0,0.4840153]
[1759155405182,0.04415,113900.0,113890.0,0.4840153]
[1759155405380,0.04375,113900.0,113890.0,0.4840153]
[1759155405578,0.56611175,113900.0,113890.0,0.4840153]
[1759155405884,0.56611175,113900.0,113890.0,0.1232153]
[1759155405885,0.56615175,113900.0,113890.0,0.1232153]
[1759155406183,0.04419,113900.0,113890.0,0.4840153]
[1759155406484,0.89383,113900.0,113890.0,0.4840153]
[1759155406686,0.9819776,113900.0,113890.0,0.1232153]
[1759155407080,0.89423,113900.0,113890.0,0.1232153]
[1759155407285,0.47840415,113900.0,113890.0,0.1232153]
[1759155407481,1.77691175,113900.0,113890.0,0.0128]
[1759155407691,1.77691175,113900.0,113890.0,0.1005553]
[1759155408184,0.806,113900.0,113890.0,0.1005653]
[1759155408381,0.0452,113900.0,113890.0,0.91890945]
[1759155408685,0.02244,113900.0,113890.0,0.14675747]
[1759155408884,0.02244,113900.0,113890.0,0.50755747]
[1759155409080,0.02204,113900.0,113890.0,0.50755747]
[1759155409282,0.02244,113900.0,113890.0,0.50755747]
[1759155409480,0.0452,113900.0,113890.0,0.50755747]
[1759155411189,0.0452,113900.0,113890.0,0.53805787]
[1759155413285,0.47941415,113900.0,113890.0,0.06617257]
[1759155413589,0.87941415,113900.0,113890.0,0.12342737]
[1759155413794,0.87941415,113900.0,113890.0,0.14675737]
[1759155414180,0.96716165,113900.0,113890.0,0.14675737]
[1759155414387,1.32796165,113900.0,113890.0,0.14675737]
[1759155414581,1.32796165,113900.0,113890.0,0.03567217]
[1759155414787,1.32796165,113900.0,113890.0,0.02286217]
[1759155414984,1.33371165,113900.0,113890.0,0.02286217]
[1759155415191,0.1105152,113890.0,113880.0,0.05336257]
[1759155415386,1.76248935,113890.0,113880.0,0.05336257]
[1759155415588,1.76248935,113890.0,113880.0,0.02286217]
[1759155415589,2.16248935,113890.0,113880.0,0.02286217]
[1759155416195,2.17132551,113890.0,113880.0,0.02286217]
[1759155416593,2.17232551,113890.0,113880.0,0.02286217]
[1759155417389,2.17132551,113890.0,113870.0,0.0314688]
[1759155417585,0.88277705,113880.0,113870.0,0.0314688]
[1759155417789,0.88277705,113880.0,113870.0,0.0009684]
[1759155417993,0.0877706,113870.0,113860.0,0.0305004]
[1759155418191,1.74026475,113870.0,113860.0,0.0305004]
[1759155418387,2.14026475,113870.0,113860.0,0.0305004]
[1759155418982,2.1403486,113870.0,113860.0,0.0305004]
[1759155419294,2.1400286,113870.0,113860.0,0.0305004]
[1759155419493,0.0877783,113860.0,113850.0,0.0877849]
[1759155419699,0.88286305,113860.0,113850.0,0.0877849]
[1759155419994,1.73966305,113860.0,113850.0,0.0877849]
[1759155420199,1.73958305,113860.0,113850.0,0.1005949]
[1759155420498,0.0877938,113840.0,113830.0,0.0433104]
[1759155420795,0.0878015,113830.0,113820.0,0.1311161]
[1759155420990,0.42564739,113830.0,113820.0,0.1441596]
[1759155421196,0.87424889,113830.0,113820.0,0.1441596]
[1759155421395,0.87433345,113830.0,113820.0,0.0258535]
[1759155421893,0.87433345,113830.0,113820.0,0.1136627]
[1759155422093,0.78653195,113830.0,113820.0,0.1369927]
[1759155422290,1.65225871,113830.0,113820.0,0.1369927]
[1759155422488,0.80509871,113830.0,113820.0,0.1369927]
[1759155422794,0.36688456,113830.0,113820.0,0.1369927]
[1759155422987,0.36728456,113830.0,113820.0,0.1369927]
[1759155423183,0.00048456,113830.0,113820.0,0.1369927]
[1759155423387,0.00148456,113830.0,113820.0,0.4977927]
[1759155423596,0.00108456,113830.0,113820.0,0.4977927]
[1759155423795,0.00148456,113830.0,113820.0,0.8977927]
[1759155423993,0.00108456,113830.0,113820.0,0.9282931]
[1759155424195,0.00148456,113830.0,113820.0,0.9282931]
[1759155424385,0.00148456,113830.0,113820.0,0.8977927]
[1759155424590,0.00148456,113830.0,113820.0,0.9282931]
[1759155425095,0.00108456,113830.0,113820.0,0.9282931]
[1759155425303,0.00148456,113830.0,113820.0,0.8977927]
[1759155426587,0.08928606,113830.0,113820.0,0.4099835]
[1759155426899,0.45008606,113830.0,113820.0,0.0491835]
[1759155427085,0.44437476,113830.0,113820.0,0.0491835]
[1759155427495,0.87858891,113830.0,113820.0,0.0491835]
[1759155427895,0.87858891,113830.0,113820.0,0.0258535]
[1759155428302,1.73526891,113830.0,113820.0,0.0130435]
[1759155428692,1.73526891,113830.0,113820.0,0.1136627]
[1759155428890,0.93997476,113830.0,113820.0,0.1369927]
[1759155429195,0.0004,113830.0,113820.0,0.1369927]
[1759155429596,1.2777587,113840.0,113830.0,0.01281]
[1759155429796,1.2777587,113840.0,113830.0,0.0258535]
[1759155429797,1.71277285,113840.0,113830.0,0.0258535]
[1759155430097,1.28361285,113840.0,113830.0,0.1006115]
[1759155430403,2.05209415,113840.0,113830.0,0.1239415]
[1759155430593,2.05129415,113840.0,113830.0,0.1239415]
[1759155430795,1.29053415,113840.0,113830.0,0.1239415]
[1759155430995,1.73952795,113840.0,113830.0,0.1239415]
[1759155431191,2.14552795,113840.0,113820.0,0.4614143]
[1759155431395,0.88281565,113830.0,113820.0,0.01281]
[1759155431590,0.88281565,113830.0,113820.0,0.0257855]
[1759155431795,0.88281565,113830.0,113820.0,0.0129755]
[1759155432000,0.4486015,113830.0,113820.0,0.1135947]
[1759155432204,1.3193138,113840.0,113830.0,0.1239415]
[1759155432205,0.4629967,113840.0,113830.0,0.1239415]
[1759155432503,0.87132,113840.0,113830.0,0.1239415]
[1759155432697,1.3203138,113840.0,113830.0,0.1239415]
[1759155432898,1.75452795,113840.0,113830.0,0.1239415]
[1759155433098,1.74252795,113840.0,113830.0,0.01281]
[1759155433404,0.0878015,113830.0,113820.0,0.100616]
[1759155433601,0.88281565,113830.0,113820.0,0.11361183]
[1759155434309,0.88281565,113830.0,113820.0,0.13694503]
[1759155434501,0.88281565,113830.0,113820.0,0.02580583]
[1759155434697,0.87624844,113830.0,113820.0,0.01299583]
[1759155435199,0.0878092,113820.0,113810.0,0.1006268]
[1759155435402,1.37886335,113820.0,113810.0,0.1006268]
[1759155436400,1.37886335,113820.0,113810.0,0.01281]
[1759155436607,1.3054541,113820.0,113800.0,0.1014439]
[1759155436806,0.4486056,113830.0,113810.0,0.1010155]
[1759155437104,0.88561975,113830.0,113820.0,0.0132]
[1759155437309,1.65641415,113830.0,113820.0,0.1010092]
[1759155437605,1.65641415,113830.0,113820.0,0.0132]
[1759155437606,0.88361565,113830.0,113820.0,0.0132]
[1759155437807,1.74245565,113830.0,113820.0,0.0132]
[1759155438199,1.74445565,113830.0,113820.0,0.0132]
[1759155438400,0.0878092,113820.0,113810.0,0.1040118]
[1759155438599,0.52202335,113820.0,113810.0,0.1040169]
[1759155438800,0.52202335,113820.0,113810.0,0.1010169]
[1759155439398,0.0878092,113820.0,113810.0,0.1010169]
[1759155439597,0.52202335,113820.0,113810.0,0.1010169]
[1759155440405,0.43421415,113820.0,113810.0,0.1224469]
[1759155440707,0.88562085,113830.0,113820.0,0.1009792]
[1759155440912,0.4514015,113830.0,113820.0,0.1224092]
[1759155441112,1.3071215,113830.0,113820.0,0.1224092]
[1759155441303,1.3071215,113830.0,113820.0,0.1009792]
[1759155441304,1.74173565,113830.0,113820.0,0.1009792]
[1759155441611,1.74173565,113830.0,113820.0,0.01317]
[1759155441802,0.0878092,113820.0,113810.0,0.1050116]
[1759155442109,0.0878092,113820.0,113810.0,0.1264416]
[1759155442309,0.0878092,113820.0,113810.0,0.1224416]
[1759155442703,0.52202335,113820.0,113810.0,0.1224416]
[1759155442903,0.52202335,113820.0,113810.0,0.1234416]
[1759155443107,1.29309415,113820.0,113810.0,0.4842416]
[1759155443304,0.79541415,113830.0,113820.0,0.1009792]
[1759155443510,1.3069615,113830.0,113820.0,0.1224092]
[1759155443808,1.74117565,113830.0,113820.0,0.01317]
[1759155444007,0.0878092,113820.0,113810.0,0.1040122]
[1759155444209,0.0878092,113820.0,113810.0,0.1254422]
[1759155444409,0.4490079,113830.0,113820.0,0.1009792]
[1759155444606,1.74162205,113830.0,113820.0,0.1009792]
[1759155444811,0.88522205,113830.0,113820.0,0.1009792]
[1759155445005,1.74362205,113830.0,113820.0,0.1009792]
[1759155445208,1.74162205,113830.0,113820.0,0.1009792]
[1759155445405,0.0902015,113830.0,113820.0,0.1224092]
[1759155445609,0.9479215,113830.0,113820.0,0.01317]
[1759155445913,1.3071215,113830.0,113820.0,0.1009792]
[1759155446213,1.3091215,113830.0,113820.0,0.01317]
[1759155446516,0.0878092,113820.0,113810.0,0.4618104]
[1759155446710,0.0878092,113820.0,113810.0,0.1010104]
[1759155447009,0.0878092,113820.0,113810.0,0.1224404]
[1759155447911,0.52442005,113830.0,113820.0,0.1009792]
[1759155448105,1.38142005,113830.0,113820.0,0.1009792]
[1759155448509,1.74222005,113830.0,113820.0,0.1009792]
[1759155448920,0.43461415,113830.0,113820.0,0.1224092]
[1759155449107,0.85884,113830.0,113820.0,0.1224092]
[1759155449411,0.9466415,113830.0,113820.0,0.1224092]
[1759155449605,1.3090415,113830.0,113820.0,0.1224092]
[1759155450006,1.3074415,113830.0,113820.0,0.1224092]
[1759155450206,1.74365565,113830.0,113820.0,0.1224092]
[1759155450404,1.38285565,113830.0,113820.0,0.1224092]
[1759155450609,1.74365565,113830.0,113820.0,0.1224092]
[1759155451511,1.74365565,113830.0,113820.0,0.1009792]
[1759155452015,1.74365565,113830.0,113820.0,0.0878092]
[1759155453506,1.74365565,113830.0,113810.0,0.0437004]
[1759155453507,0.0878092,113820.0,113810.0,0.1538146]
[1759155453711,0.52202335,113820.0,113810.0,0.1538146]
[1759155453917,0.52202335,113820.0,113810.0,0.1323846]
[1759155454615,0.0878092,113820.0,113810.0,0.1323846]
[1759155454806,0.52202335,113820.0,113810.0,0.1323846]
[1759155456018,1.37826335,113820.0,113810.0,0.1353846]
[1759155456416,0.9440492,113820.0,113810.0,0.1323846]
[1759155456717,1.37826335,113820.0,113810.0,0.1333846]
[1759155457114,1.77826335,113820.0,113810.0,0.0323704]
[1759155457713,0.92202335,113820.0,113810.0,0.1201873]
[1759155457914,0.92202335,113820.0,113810.0,0.1547873]
[1759155457915,0.85464,113820.0,113810.0,0.1547873]
[1759155458216,0.88322065,113830.0,113820.0,0.1009792]
[1759155458511,0.0878092,113820.0,113810.0,0.1333503]
[1759155458718,1.37666335,113820.0,113810.0,0.1333503]
[1759155459108,0.3612,113830.0,113810.0,0.1333503]
[1759155459309,0.88322195,113830.0,113820.0,0.1009792]
[1759155459522,1.73770195,113830.0,113820.0,0.0878092]
[1759155460211,2.13750195,113830.0,113820.0,0.1009792]
[1759155460416,0.0928092,113820.0,113810.0,0.1323556]
[1759155460716,0.52702335,113820.0,113810.0,0.1323556]
[1759155461615,1.38110335,113820.0,113810.0,0.1323556]
[1759155462213,1.37610335,113820.0,113810.0,0.1323556]
[1759155462406,1.48919543,113820.0,113810.0,0.1323573]
[1759155462606,1.84999543,113820.0,113810.0,0.1191873]
[1759155462811,2.24999543,113820.0,113810.0,0.0313704]
[1759155463006,2.24999543,113820.0,113810.0,0.00087]
[1759155463210,2.25799543,113820.0,113810.0,0.0313704]
[1759155463417,0.8566092,113820.0,113810.0,0.1191873]
[1759155463616,1.40391543,113820.0,113810.0,0.1323573]
[1759155463819,1.77038623,113820.0,113810.0,0.1323573]
[1759155464118,1.76738623,113820.0,113810.0,0.1323573]
[1759155464314,2.25543543,113820.0,113810.0,0.0313704]
[1759155464520,2.25543543,113820.0,113810.0,0.1191873]
[1759155464914,2.25543543,113820.0,113810.0,0.0313704]
[1759155466417,2.25543543,113820.0,113810.0,0.00087]
[1759155467015,0.0878169,113810.0,113800.0,0.07661714]
[1759155467213,0.99592313,113810.0,113800.0,0.07661714]
[1759155467410,0.99592313,113810.0,113800.0,0.0305004]
[1759155467613,0.99592313,113810.0,113800.0,0.07661714]
[1759155467810,0.99592313,113810.0,113800.0,0.0305004]
[1759155468408,1.39792313,113810.0,113800.0,0.0305004]
[1759155470019,0.0878247,113800.0,113790.0,0.04619158]
[1759155470318,1.84861093,113800.0,113790.0,0.04619158]